Cogmind - Beta 17 @@@ ROGUE MODE // 2026.07.24 @ 23:09:24 Player: LanceLander Result: Destroyed by P-60 Hacker with Shock Rifle Performance ------------- Evolutions (0) 0 Regions Visited (3) 600 Robots Destroyed (37) 185 Value Destroyed (1139) 1139 Prototype IDs (14) 280 Alien Tech Used (0) 0 Bonus (0) 0 TOTAL SCORE: 2204 Bonus ------- None Cogmind --------- Core Integrity 0/250 Matter 200/300 Energy 270/290 System Corruption 0% Temperature Warm (126) Movement Rolling (100) Location -7/Recycling Parts ------- > --- POWER (1) -------- Improved Deuterium Engine > --- PROPULSION (2) --- Armored Huge Wheel > --- UTILITY (2) ------ Advanced Signal Interpreter Advanced ECM Suite > --- WEAPON (2) ------- Arc Projector Arc Projector > --- INVENTORY (5) ---- Light Fission Core Arachnoskeleton Peak State ------------ > --- POWER ------------ Subdweller Power Source Light Fission Core > --- PROPULSION ------- Aluminum Leg Armored Huge Wheel > --- UTILITY ---------- High-capacity Storage Unit Improved Terrain Scanner Rainbow Chip > --- WEAPON ----------- Subdweller Beam Cannon Makeshift Spear > --- INVENTORY -------- Arachnoskeleton Scrap Shield SUBCON Basin [Rating: 59] Favorites ----------- Power Subdweller Power Source Engine Subdweller Power Source Power Core Light Fission Core Propulsion Aluminum Leg Treads Spiked Treads Leg Aluminum Leg Wheel Subdweller Monowheel Utility Improved Terrain Scanner Device Improved Terrain Scanner Storage High-capacity Storage Unit Processor Rainbow Chip Protection Scrap Shield Weapon Subdweller Beam Cannon Energy Gun Arc Projector Energy Cannon Subdweller Beam Cannon Ballistic Gun Heavy Assault Rifle Ballistic Cannon Battle Cannon Launcher Subdweller Shrapnel Launcher Special Weapon Flamer Piercing Weapon Makeshift Spear Build | -11 -10 -10 -7 ------- Run | Yrd Mat Sub Rec Slots Evolved . | . . . . Power . | . . . . Propulsion . | . . . . Utility . | . . . . Weapon . | . . . . Parts Attached 64 | 7 7 36 14 Power 12 | 1 . 8 3 Engine 11 | 1 . 8 2 Core 1 | . . . 1 Reactor . | . . . . Propulsion 18 | 2 2 11 3 Treads 2 | . . 2 . Leg 4 | 2 . 2 . Wheel 12 | . 2 7 3 Hover . | . . . . Flight . | . . . . Utility 10 | 2 3 2 3 Device 4 | 1 2 . 1 Storage 3 | 1 1 1 . Processor 2 | . . 1 1 Hackware . | . . . . Protection 1 | . . . 1 Artifact . | . . . . Weapon 24 | 2 2 15 5 Energy Gun 4 | 1 . . 3 Energy Cannon 4 | . . 4 . Ballistic Gun 12 | 1 2 7 2 Ballistic Cannon 1 | . . 1 . Launcher 1 | . . 1 . Special Weapon 1 | . . 1 . Impact Weapon . | . . . . Slashing Weapon . | . . . . Piercing Weapon 1 | . . 1 . Special Melee Weapon . | . . . . Unidentified Prototypes 1 | . . 1 . Parts Lost 16 | . . 15 1 Power 3 | . . 3 . Propulsion 8 | . . 8 . Utility . | . . . . Weapon 5 | . . 4 1 Highest Loss Streak 3 | . . 3 1 To Critical Strikes . | . . . . Average Backups 10 | 1 5 14 2 Power . | . 1 . . Propulsion 2 | . 2 2 1 Utility 2 | . . 3 . Weapon 4 | . 1 6 . Tool/Special . | . . . . Unused Backups 8 | . 1 5 2 Power . | . . . . Propulsion 1 | . . . 1 Utility 2 | . . 2 . Weapon 5 | . 1 3 1 Tool/Special . | . . . . Average Slot Usage (%) 88 | . 99 89 85 Engine 14 | . 14 16 11 Core 1 | . . . 7 Treads 6 | . . 9 . Leg 6 | . 21 5 7 Wheel 7 | . 6 6 12 Device 9 | . 13 9 7 Storage 9 | . 14 10 7 Processor 8 | . . 8 8 Energy Gun 1 | . 10 . 2 Energy Cannon 7 | . . 7 8 Ballistic Gun 5 | . 17 5 3 Ballistic Cannon 2 | . . 3 . Launcher 2 | . . 4 . Piercing Weapon 2 | . . 1 8 Peak Build Rating 59 | 7 12 51 59 Average Rating 35 | 5 7 32 49 On Entrance 17 | . 7 12 51 Avg Prop Armor Cover (%) 9 | . . 9 8 Naked Turns . | . . . . Heaviest Build 67 | 14 32 67 63 Greatest Support 40 | 20 20 40 32 Greatest Overweight (x) 6 | 3 1 6 6 Average Overweight (x) 1 | . . 1 1 Largest Inventory Capacity 20 | 8 15 20 20 Average Capacity 17 | 7 9 19 16 Most Carried 20 | 4 9 20 20 Average Carried 17 | 1 5 18 16 Final Capacity 20 | 8 15 20 5 Final Carried 20 | 4 9 20 4 Class Distribution -------------------- 57% | Mutant 21% | Scavenger-Mutant 10% | Derelict-Mutant 6% | Scavenger-Skirmisher Dominant Class ---------------- Mutant | -10/Materials Mutant | -10/Subcaves Mutant | -7/Recycling Resources | -11 -10 -10 -7 ----------- Run | Yrd Mat Sub Rec Matter Collected 1544 | 164 67 1179 134 Remotely . | . . . . Salvage Created 1388 | 28 134 1009 217 Parts 103 | 4 18 76 5 Haulers Intercepted . | . . . . Recyclers Shooed . | . . . . Parts Field Recycled . | . . . . Retrieved Matter . | . . . . Parts Self-Destructed 19 | . . 19 . Prevented . | . . . . Parts Restored . | . . . . Kills | -11 -10 -10 -7 ------- Run | Yrd Mat Sub Rec Combat Hostiles Destroyed 31 | . 4 26 1 Guns 16 | . 4 11 1 Cannons 11 | . . 11 . AOE 4 | . . 4 . Classes Destroyed 9 | 1 4 4 . Builder 1 | . 1 . . Tunneler 2 | 1 1 . . Operator 1 | . 1 . . Turret 2 | . . 2 . Swarmer 7 | . 3 4 . Grunt 3 | . 1 2 . Sentry 2 | . . 1 1 Artisan 1 | . . 1 . Subdweller 19 | . . 19 . Best Kill Streak 5 | 1 5 3 1 Combat Bots Only 3 | . 3 3 1 Max Kills in Single Turn 2 | 1 2 2 1 Gunslinging . | . . . . Exploded 2 | . . 2 . Melee . | . . . . Uniques/NPCs Destroyed . | . . . . Combat | -11 -10 -10 -7 -------- Run | Yrd Mat Sub Rec Hostile Shots Fired 181 | . 23 121 37 Missed 55 | . 8 39 8 Hits 126 | . 15 82 29 Projectile 126 | . 15 82 29 Damage Taken 2240 | . 131 1879 230 Core 261 | . 53 164 44 Absorbed by Shields . | . . . . Core Remaining (%) 100 | 100 . . . Volleys Fired 153 | 1 19 127 6 Largest 3 | 2 2 3 2 Hottest 135 | 60 60 135 110 Shots Fired 263 | 2 38 212 11 Gun 163 | 2 38 113 10 Cannon 93 | . . 92 1 Launcher 6 | . . 6 . Special 1 | . . 1 . Kinetic 165 | 1 29 129 6 Thermal 94 | 1 9 83 1 Explosive . | . . . . Electromagnetic 4 | . . . 4 Robot Hit Streak 22 | 1 11 22 10 Robot Miss Streak 4 | . 4 3 3 Penetration Max . | . . . . Secondary Targets 3 | . 1 2 . Max Gunslinging Chain 1 | . 1 1 . Shots Hit Robots 148 | 1 24 110 13 Core Hits 67 | 1 10 44 12 Critical Kills 1 | . . 1 . Critical Parts Destroyed 1 | . 1 . . Critical Strikes 5 | . 1 3 1 Meltdown 1 | . . 1 . Destroy 3 | . 1 2 . Impale 1 | . . . 1 Melee Attacks 18 | . . 11 7 Impact . | . . . . Slashing . | . . . . Piercing 18 | . . 11 7 Sneak Attacks . | . . . . Combat Hostiles . | . . . . Follow-up Attacks . | . . . . Damage Inflicted 3182 | 12 319 2404 447 Guns 1596 | 12 319 1111 154 Cannons 933 | . . 906 27 Explosions 387 | . . 387 . Melee 266 | . . . 266 Ramming . | . . . . Kinetic 1978 | . 245 1600 133 Thermal 917 | 12 74 804 27 Explosive . | . . . . Electromagnetic 21 | . . . 21 Impact . | . . . . Slashing . | . . . . Piercing 266 | . . . 266 Highest Corruption . | . . . . Average Corruption . | . . . . Corruption Purged . | . . . . Corruption Blocked . | . . . . Overload Shots . | . . . . Overflow Damage 43 | . . . 43 Projectiles . | . . . . Explosions . | . . . . Melee 43 | . . . 43 Knockbacks 1 | . . 1 . Impact . | . . . . Kinetic 1 | . . 1 . Secondary . | . . . . Self-Inflicted Damage 37 | . . 37 . Shots 1 | . . 1 . Rammed . | . . . . Targets Rammed . | . . . . Kicked . | . . . . Crushed . | . . . . Highest Temperature 144 | . 18 24 144 Average Temperature 23 | . 11 11 44 Received Heat Transfer 462 | . 18 378 66 Siege Activations . | . . . . Martial Activations . | . . . . Shielding Activations . | . . . . Robots Disrupted . | . . . . Combat Hostiles . | . . . . Robots Corrupted . | . . . . Combat Hostiles . | . . . . Parts Fried . | . . . . Impact Corruptions . | . . . . Robots Melted 1 | . . 1 . Combat Hostiles . | . . . . Parts Melted 1 | . . 1 . Heat Transferred 1310 | 25 175 1073 37 Parts Sabotaged . | . . . . Parts Stolen . | . . . . Parts Stripped . | . . . . Power Chain Reactions . | . . . . Alert | -11 -10 -10 -7 ------- Run | Yrd Mat Sub Rec Maximum Alert Level . | . . . . Low Security (%) 100 | 100 100 . 100 Level 1 . | . . . . Level 2 . | . . . . Level 3 . | . . . . Level 4 . | . . . . Level 5 . | . . . . High Security . | . . . . Max Security . | . . . . Peak Influence 81 | 5 60 . 81 Initial 76 | . . . 76 Average 5 | 1 10 . 5 Influence Increases 447 | 5 116 250 76 Destroy 0b10 Robot/C 280 | . 80 180 20 Destroy 0b10 Robot/NC 35 | 5 15 . 15 Destroy Leader 30 | . 20 10 . Successful Hack 38 | . . . 38 Destroy Structure 4 | . 1 . 3 Lose Combat Pursuer 60 | . . 60 . Influence Decreases 447 | 5 76 130 236 Entered New Map 104 | . . 20 84 Time Decay 313 | 5 76 80 152 Lost Part 30 | . . 30 . Squads Dispatched 1 | . 1 . . Investigation . | . . . . Extermination . | . . . . Reinforcement 1 | . 1 . . Assault . | . . . . Garrison . | . . . . Intercept . | . . . . Searches Triggered . | . . . . Construction Impeded . | . . . . Haulers Reinforced . | . . . . Active Scanning Responses . | . . . . Cargo Convoy Interrupts . | . . . . Stealth | -11 -10 -10 -7 --------- Run | Yrd Mat Sub Rec Distress Signals . | . . . . Communications Jammed . | . . . . Distress Signals . | . . . . Times Spotted 38 | . 6 29 3 Peak Tracking Total 4 | . 2 4 2 Tactical Retreats 2 | . . 2 . Traps | -11 -10 -10 -7 ------- Run | Yrd Mat Sub Rec Traps Triggered 6 | . . 6 . Indirectly . | . . . . Trap Hack Attempts . | . . . . Triggered . | . . . . Disarmed . | . . . . Reprogrammed . | . . . . Reused . | . . . . Traps Extracted . | . . . . Installed . | . . . . Triggered . | . . . . Machines | -11 -10 -10 -7 ---------- Run | Yrd Mat Sub Rec Machines Disabled 4 | . . 4 . Max in Single Turn 3 | . . 3 . Machines Repaired . | . . . . Machines Dismantled . | . . . . Machines Sabotaged . | . . . . Overloaded Fab Kills . | . . . . Hacking | -11 -10 -10 -7 --------- Run | Yrd Mat Sub Rec Machines Accessed 16 | . 1 4 11 Terminals 7 | . 1 . 6 Fabricators . | . . . . Repair Stations . | . . . . Recycling Units 5 | . . . 5 Scanalyzers . | . . . . Garrison Access . | . . . . Total Hacks 36 | . 1 8 27 Successful 23 | . 1 8 14 Failed 13 | . . . 13 Catastrophic 3 | . . . 3 Database Lockouts . | . . . . Manual 10 | . 1 . 9 Terminals 15 | . 1 . 14 Fabricators . | . . . . Repair Stations . | . . . . Recycling Units 13 | . . . 13 Scanalyzers . | . . . . Garrison Access . | . . . . Terminal Hacks 11 | . . 8 3 Record 5 | . . 5 . Part Schematic 1 | . . . 1 Open Door 1 | . . 1 . Zone Layout 2 | . . . 2 Proto ID Catalog 1 | . . 1 . Release Object 1 | . . 1 . Fabricator Hacks . | . . . . Repair Station Hacks . | . . . . Recycling Unit Hacks 9 | . . . 9 Report Inventory 5 | . . . 5 Retrieve Components 4 | . . . 4 Scanalyzer . | . . . . Garrison Access Hacks . | . . . . Unauthorized Hacks 3 | . 1 . 2 Terminals 2 | . 1 . 1 Botnet 2 | . 1 . 1 Fabricators . | . . . . Repair Stations . | . . . . Recycling Units 1 | . . . 1 Mask 1 | . . . 1 Scanalyzers . | . . . . Garrison Access . | . . . . Data Cores Recovered . | . . . . Used . | . . . . Hacking Detections 8 | . . . 8 Full Trace Events . | . . . . Feedback Events . | . . . . Feedback Blocked . | . . . . Robot Schematics Acquired . | . . . . Robots Built . | . . . . Authchips . | . . . . Time . | . . . . Total Robot Build Rating . | . . . . Part Schematics Acquired 1 | . . . 1 Parts Built . | . . . . Authchips . | . . . . Time . | . . . . Total Part Build Rating . | . . . . Part Studies Acquired . | . . . . Parts Repaired . | . . . . Time . | . . . . Parts Recycled . | . . . . Recycled Matter . | . . . . Retrieved Matter . | . . . . Retrieved Components 9 | . . . 9 Parts Scanalyzed . | . . . . Part Schematics Acquired . | . . . . Parts Damaged . | . . . . Bothacking | -11 -10 -10 -7 ------------ Run | Yrd Mat Sub Rec Used RIF Installer . | . . . . Robots Hacked . | . . . . Non-combat . | . . . . Combat . | . . . . Robot Hacks Applied . | . . . . Relay Couplers Released . | . . . . Fabnet Peak Effective % . | . . . . Robots Rewired . | . . . . Allies Hacked . | . . . . Hacks Repelled . | . . . . Allies | -11 -10 -10 -7 -------- Run | Yrd Mat Sub Rec Total Allies . | . . . . Largest Group . | . . . . Highest-Rated Group . | . . . . Highest-Rated Ally . | . . . . Total Orders . | . . . . Ally Attacks . | . . . . Total Damage . | . . . . Kills . | . . . . Allies Corrupted . | . . . . Allies Melted . | . . . . Intel | -11 -10 -10 -7 ------- Run | Yrd Mat Sub Rec Active Infowar (turns) 8409 | 31 385 6188 1805 Terrain 8138 | . 146 6188 1804 Seismic 270 | 31 239 . . ECM 1 | . . . 1 Robot Analysis Total . | . . . . Derelict Logs Recovered 2 | . . 2 . Drone Launches . | . . . . Drone Recoveries . | . . . . Exploration | -11 -10 -10 -7 ------------- Run | Yrd Mat Sub Rec Turns Passed 9244 | 79 386 6389 2390 Spaces Moved 4304 | 48 256 2769 1231 Core 8 | 8 . . . Treads 969 | . . 969 . Legs 823 | 40 207 576 . Wheels 2504 | . 49 1224 1231 Hover . | . . . . Flight . | . . . . Fastest Speed 50 | 50 95 95 100 Average Speed 172 | 129 115 202 117 Slowest Speed 470 | 200 120 470 170 Overloaded Moves . | . . . . Propulsion Burnouts . | . . . . Robots Hopped . | . . . . Potential Cave-ins . | . . . . Cave-ins Triggered . | . . . . Exploration Rate (%) 56 | 4 32 95 93 Regions Visited 3 Branch Regions 2 Pre-discovered Areas 1 | . . 1 . Known Exits Taken . | . . . . Unknown Exits Taken 3 | 1 1 1 . Scrap Searched 10 | . . 10 . Spaces Dug 12 | . . 9 3 Terrain Destroyed 111 | . . 108 3 Melee 3 | . . . 3 Projectile 16 | . . 16 . AOE 92 | . . 92 . Terrain Rammed . | . . . . Walls Destroyed . | . . . . Machines Disabled . | . . . . Actions | -11 -10 -10 -7 --------- Run | Yrd Mat Sub Rec Total 5867 | 59 309 3343 2156 Wait 1201 | . 20 307 874 Move 4301 | 47 255 2768 1231 Hop . | . . . . Pick Up 29 | 4 4 19 2 Fast Attach 46 | 7 2 24 13 Attach 20 | . . 18 2 Detach 20 | . 1 15 4 Swap 24 | . 5 18 1 Drop 55 | . 3 36 16 Fire 153 | 1 19 127 6 Melee 18 | . . 11 7 Ram . | . . . . Kick . | . . . . Crush . | . . . . Escape Stasis . | . . . . Rewire . | . . . . Trap . | . . . . Miscellaneous . | . . . . Route ------- -11/Scrapyard -10/Materials (discovered 3 exits: [*Mat] / [*Min] / *Sub) -10/Subcaves (discovered 4 exits: [*Mat x2] / *Rec / [*Scr]) -7/Recycling (discovered 1 exit: [*Fac]) History --------- Turn | Location | Event 8 | -11/Scrapyard | Discovered new exit (range 15) 80 | -11/Scrapyard | Entered Materials 166 | -10/Materials | Discovered new exit (range 8) 193 | -10/Materials | Discovered new exit (range 10) 272 | -10/Materials | Discovered new exit (range 14) 309 | -10/Materials | Build established: Mutant 466 | -10/Materials | Entered Subcaves 467 | -10/Subcaves | Approached by a straggling Scientist 474 | -10/Subcaves | Scientist uncovered a shortcut to Scraptown 501 | -10/Subcaves | A swath of the cavern ceiling suddenly collapsed 751 | -10/Subcaves | Learned location of Mines (-10) 996 | -10/Subcaves | A Subdweller sparked back to life 996 | -10/Subcaves | A Subdweller sparked back to life 1028 | -10/Subcaves | Core integrity fell below 50% 1036 | -10/Subcaves | Found Prototype Processor 1036 | -10/Subcaves | Identified Rainbow Chip 1038 | -10/Subcaves | Attached Rainbow Chip, gained temporary slots: Power, Propulsion, Utility, Weapon 1058 | -10/Subcaves | Shifting Twisted Machinery released Flamer 1141 | -10/Subcaves | Shifting Twisted Machinery released Battle Rifle 1181 | -10/Subcaves | Discovered new exit (range 3) 1531 | -10/Subcaves | Build established: Scavenger-Skirmisher 1724 | -10/Subcaves | Lost 3 parts (2n1w) 1791 | -10/Subcaves | Visited Clippyterm 1795 | -10/Subcaves | Learned Factory trap positions 2130 | -10/Subcaves | Shifting Twisted Machinery released Sub. Power Source 2354 | -10/Subcaves | Learned Materials garrison access intel 2364 | -10/Subcaves | Visited 4L-MR0's lab 2378 | -10/Subcaves | Found Arachnoskeleton 2532 | -10/Subcaves | Build established: Mutant 3938 | -10/Subcaves | Shifting Twisted Machinery released Battle Cannon 4124 | -10/Subcaves | Shifting Twisted Machinery released Sub. Beam Cannon 4206 | -10/Subcaves | A swath of the cavern ceiling suddenly collapsed 4600 | -10/Subcaves | Discovered new exit (range 16) 4663 | -10/Subcaves | Build established: Scavenger-Mutant 5024 | -10/Subcaves | Core integrity fell below 20% 5346 | -10/Subcaves | Build established: Derelict-Mutant 5929 | -10/Subcaves | Discovered new exit (range 12) 6208 | -10/Subcaves | Build established: Scavenger-Mutant 6387 | -10/Subcaves | Found SUBCON Basin 6855 | -10/Subcaves | Entered Recycling 7334 | -7/Recycling | Discovered new exit (range 16) 7524 | -7/Recycling | Build established: Mutant 9245 | -7/Recycling | Destroyed by P-60 Hacker with Shock Rifle Last Messages --------------- Inventory: Adv. Signal Interpreter (54%) Fusion Compressor (45%) >>Retrieve(Components) Retrieving 2 components... Adv. Signal Interpreter Fusion Compressor 09046_ Connecting with Recycling Unit... 09047_ Acquired Adv. Signal Interpreter. 09056_ Dropped Flak Gun. 09057_ Acquired Arc Projector. 09059_ Dropped Flak Gun. 09060_ Acquired Arc Projector. 09062_ Dropped Flak Gun. 09064_ Acquired Arc Projector. 09076_ R-06 Scavenger collects Flak Gun. 09191_ Acquired Adv. ECM Suite. 09239_ Y-54 Guardian springs to life. 09242_ Arc Projector destroyed. [Achievement: I Think I Know What's Going On] Map ----- +----------------------------------------------------+ | #???????## # # #??????????????? | | #??#?#??#% # # #??????????????? | | #????#??## # # #??????????????? | | #???????## + + #??????????????? | | #????????# # # #????#?????????? | | ##??#????# # # #??????????????? | | ???#??#?# = # # *=##?????????????? | | ##??##???# # # %#?????????????? | | #????????#####%#### ###########?????????????? | | #?????????#??###??# #?#??#??????#???????????? | | ##?????????????#??# ###########?????????????? | | #?################# # #????????????#? | | #?# # # ! [ ##????????????? | | #?# """ """ T + + ! #?????????????? | | ### """ """ # # #????????#????? | | ### """ """ # # ! !! #?????????????? | | ""# # # #?????????????? | | Y"################# # ! #?????????????? | | ""#?????#?#?#?????# # ! #?????????????? | | ###??????#????????# ######+####?????????????? | | ##????????????????# #????# #???#????????????? | | #?##########?#??#?# #??#?# #????????????????? | | ####"""T"""###?#??# #????# ##???????????????? | | # #????# ####?# #????????????????? | | # #????# ##Y### #?#??????????????? | | # """ """ ###### @ p #?#??????????????? | | # """ """ + ###### #?#??????????????? | | # """ """ ###### ""##?# ###??????????????? | | # #??### Y"#?## +??????????????? | | + """ """ ###??# ""##??#?##??????????????? | | # """ """ ###### ####??###? ?????????????? | | # """ """ ##?### #?###?#### ????????????? | | # #?#### ##?####?##?##???????????? | | # #??### ######?#?#?##???????????? | | # ###??# ##?##?#?#???#???????????? | | #####""T""######### ###??##??##??##?????????? | | #?#?#"""""####?#?## #####??#?#????#?????????? | | ##??#########?#?### ##?#??#?#?#####?????????? | | ###### ########### ########????##"????????? | | !* ###?###?#??###?????????? | | !! #####?##?#####"????????? | | = & ####????#???##?????????? | | ###########+##### #???###?#?###??"???????? | | =""#??# ##############??????## ????????? | | = Y"#??# #?##########???#???????????????? | | !""#??# #######??######?#######????????? | | ###### #?###########???###?##?????????? | | + #####?###?#####??#?##??????????? | | ######## ###?#?##?##????##??###?????????? | | ???????# ##?#?###?###??????###??????????? | +----------------------------------------------------+ Best States ------------- Heat Dissipation 25 Energy Generation 25 Energy Capacity 300 Matter Stores 300 Matter Capacity 300 Sight Range 16 Terrain Scan Range 16 Terrain Scan Density 10 Armor Coverage 800 Evasion (%) 55 Recoil Reduction 2 Item Schematics ----------------- Power Sword | -7/Recycling | Hacked Robot Schematics ------------------ None Fabricated ------------ Nothing Repaired ---------- Nothing Studied --------- None Alien Tech Used ----------------- None Achievements -------------- I Think I Know What's Going On Myspace Challenges ------------ None Game ------ Seed NavigationAerolevComputer Manual? 0 Play Time 00:54:39 Cumulative 85.5 hours Start 2026.07.24 @ 21:10:36 End 2026.07.24 @ 23:09:24 Sessions 1 Manual Loads 0 Difficulty Rogue Special Mode None Game No. 49 Rogue 49 Adventurer 0 Explorer 0 Win Type - Total 0 Types 0/0/0/0/0/0/0/0/0/0 Lore% 50 Gallery% 50 Achievement% 39 Wizard Run 0 Options --------- Layout 0 ASCII 0 Keyboard 1 Movement Vi Keybinds 0 Fullscreen 1 Font 24/Smallcaps Map View 76x50 Zoom Use 0% Tactical HUD 1 Map Filters NONE Filters NONE Steam 1 RUN: 2a9eb776-b25c-4fd6-b968-2ed4073ed68d